[Event "Botvinnik Cup 2018"]
[Site "Moscow"]
[Date "2018.08.10"]
[Round "2"]
[White "Zeliantsova, Kseniya"]
[Black "Vaganian, Rafael A"]
[Result "1/2-1/2"]
[ECO "C16"]
[WhiteElo "1804"]
[BlackElo "2546"]
[Annotator "ChessBase"]
[PlyCount "117"]
[EventDate "2018.08.10"]
[EventCountry "RUS"]
[SourceTitle "playchess.com"]
[Source "ChessBase"]
[SourceQuality "1"]
[TimeControl "5400+30"]

1. e4 {[%emt 0:00:00]} e6 {[%emt 0:00:00]} 2. d4 {[%emt 0:00:00]} d5 {[%emt 0:00:00]} 3. Nc3 {[%emt 0:00:00]} Bb4 {[%emt 0:00:26]} 4. e5 {[%emt 0:00:00]} b6 {[%emt 0:00:20]} 5. f4 {[%emt 0:01:03]} Qd7 {[%emt 0:00:32]} 6. Nf3 {[%emt 0:00:45]} Ne7 {[%emt 0:00:11]} 7. Bd3 {[%emt 0:02:15]} Ba6 {[%emt 0:00:06]} 8. a3 {[%emt 0:00:35]} Bxc3+ {[%emt 0:00:16]} 9. bxc3 {[%emt 0:00:03]} Bxd3 {[%emt 0:00:04]} 10. Qxd3 {[%emt 0:01:27]} Nbc6 {[%emt 0:00:14]} 11. O-O {[%emt 0:01:58]} Na5 {[%emt 0:00:31]} 12. Nh4 {[%emt 0:05:18]} Nf5 {[%emt 0:01:53]} 13. Nxf5 {[%emt 0:06:40]} exf5 {[%emt 0:00:07]} 14. Qg3 {[%emt 0:00:07]} O-O {[%emt 0:00:13]} 15. Qf3 {[%emt 0:05:18]} Rac8 {[%emt 0:06:42]} 16. h3 {[%emt 0:02:04]} c5 {[%emt 0:00:06]} 17. Be3 {[%emt 0:07:01]} Nc4 {[%emt 0:00:26]} 18. Bc1 {[%emt 0:16:55]} cxd4 {[%emt 0:02:42]} 19. cxd4 {[%emt 0:00:06]} Rc6 {[%emt 0:00:46]} 20. Rf2 {[%emt 0:07:06]} Rfc8 {[%emt 0:09:02]} 21. g4 {[%emt 0:00:48]} h6 {[%emt 0:04:35]} 22. Ra2 {[%emt 0:05:30]} Na5 {[%emt 0:09:04]} 23. Kh2 {[%emt 0:02:00]} Rc3 {[%emt 0:02:06]} 24. Qg2 {[%emt 0:00:07]} Nc6 {[%emt 0:01:59]} 25. Bd2 {[%emt 0:01:31]} Rc4 {[%emt 0:00:47]} 26. c3 {[%emt 0:00:31]} Ne7 {[%emt 0:10:09]} 27. g5 {[%emt 0:02:57]} h5 {[%emt 0:02:11]} 28. Re2 {[%emt 0:00:49]} g6 {[%emt 0:01:08]} 29. Ra1 {[%emt 0:00:35]} Nc6 {[%emt 0:00:31]} 30. Rae1 {[%emt 0:01:17]} Nd8 {[%emt 0:03:16]} 31. Qf3 {[%emt 0:00:52]} Ne6 {[%emt 0:00:03]} 32. Rb1 {[%emt 0:01:58]} b5 {[%emt 0:02:16]} 33. Be1 {[%emt 0:01:00]} a5 {[%emt 0:03:06]} 34. Reb2 {[%emt 0:00:14]} Rb8 {[%emt 0:00:01]} 35. Qe3 {[%emt 0:00:47]} Kh7 {[%emt 0:03:43]} 36. Bd2 {[%emt 0:00:18]} Rb6 {[%emt 0:00:22]} 37. Rb3 {[%emt 0:01:15]} Qc6 {[%emt 0:01:22]} 38. Qd3 {[%emt 0:01:42]} Nc7 {[%emt 0:06:51]} 39. Be1 {[%emt 0:04:18]} Ra4 {[%emt 0:01:19]} 40. Bd2 {[%emt 0:01:30]} Qc4 {[%emt 0:03:27]} 41. Qf1 {[%emt 0:02:54]} Qxf1 {[%emt 0:02:42]} 42. Rxf1 {[%emt 0:00:05]} Kg8 {[%emt 0:00:01]} 43. Kg2 {[%emt 0:00:57]} Kf8 {[%emt 0:00:13]} 44. Kf2 {[%emt 0:00:12]} Ke7 {[%emt 0:00:16]} 45. Ke3 {[%emt 0:00:12]} Kd7 {[%emt 0:00:06]} 46. Kd3 {[%emt 0:00:05]} Kc6 {[%emt 0:02:46]} 47. h4 {[%emt 0:01:17]} Rc4 {[%emt 0:02:40]} 48. Rfb1 {[%emt 0:00:21]} Ne6 {[%emt 0:00:42]} 49. Be3 {[%emt 0:00:52]} Nc7 {[%emt 0:04:18]} 50. Bd2 {[%emt 0:00:43]} Kb7 {[%emt 0:02:54]} 51. Be1 {[%emt 0:01:17]} Ka6 {[%emt 0:00:18]} 52. Bd2 {[%emt 0:00:06]} Ne6 {[%emt 0:00:01]} 53. Be3 {[%emt 0:01:44]} Nd8 {[%emt 0:00:53]} 54. Bd2 {[%emt 0:00:16]} Nc6 {[%emt 0:00:16]} 55. Ra1 {[%emt 0:00:40]} a4 {[%emt 0:00:58]} 56. Rb2 {[%emt 0:00:54]} Na5 {[%emt 0:00:22]} 57. Rab1 {[%emt 0:00:46]} Rc8 {[%emt 0:00:30]} 58. Be1 {[%emt 0:00:31]} Nc4 {[%emt 0:00:59]} 59. Ra2 {[%emt 0:00:07]} 1/2-1/2

[Event "Botvinnik Cup 2018"]
[Site "Moscow"]
[Date "2018.08.10"]
[Round "2"]
[White "Balabayeva, Xeniya"]
[Black "Egin, Vladimir"]
[Result "1/2-1/2"]
[ECO "C44"]
[WhiteElo "1788"]
[BlackElo "2317"]
[Annotator "NA"]
[PlyCount "48"]
[EventDate "2018.08.10"]
[EventCountry "RUS"]
[SourceTitle "playchess.com"]
[Source "ChessBase"]
[SourceQuality "1"]
[TimeControl "5400+30"]

1. e4 {[%emt 0:00:00]} e5 {[%emt 0:00:00]} 2. Nf3 {[%emt 0:00:00]} Nc6 {[%emt 0:00:00]} 3. d4 {[%emt 0:00:00]} exd4 {[%emt 0:00:00]} 4. Bc4 {[%emt 0:00:00]} Bc5 {[%emt 0:00:00]} 5. Ng5 {[%emt 0:00:32]} Nh6 {[%emt 0:00:00]} 6. Nxf7 {[%emt 0:00:39]} Nxf7 {[%emt 0:00:00]} 7. Bxf7+ {[%emt 0:00:08]} Kxf7 {[%emt 0:00:00]} 8. Qh5+ {[%emt 0:00:08]} g6 {[%emt 0:00:00]} 9. Qxc5 {[%emt 0:00:08]} d5 {[%emt 0:00:00]} 10. Qxd5+ {[%emt 0:06:53]} Qxd5 {[%emt 0:00:03]} 11. exd5 {[%emt 0:00:07]} Nb4 {[%emt 0:00:01]} 12. Na3 {[%emt 0:03:16]} Bf5 {[%emt 0:00:45]} 13. Bf4 {[%emt 0:03:23]} Rhe8+ {[%emt 0:04:44]} 14. Kd2 {[%emt 0:01:55]} Nxd5 {[%emt 0:04:47]} 15. Bg3 {[%emt 0:00:54]} Re7 {[%emt 0:15:03]} 16. Rhe1 {[%emt 0:04:41]} Rae8 {[%emt 0:03:15]} 17. Rxe7+ {[%emt 0:03:38]} Rxe7 {[%emt 0:00:02]} 18. Nb5 {[%emt 0:00:12]} Rd7 {[%emt 0:01:07]} 19. Na3 {[%emt 0:15:56]} Nb4 {[%emt 0:09:42]} 20. Nc4 {[%emt 0:06:03]} Nc6 {[%emt 0:01:16]} 21. Re1 {[%emt 0:02:34]} Be6 {[%emt 0:02:20]} 22. Ne5+ {[%emt 0:02:11]} Nxe5 {[%emt 0:00:03]} 23. Bxe5 {[%emt 0:00:42]} c5 {[%emt 0:00:31]} 24. b3 {[%emt 0:04:29]} b6 {[%emt 0:03:30]} 1/2-1/2

[Event "Botvinnik Cup 2018"]
[Site "Moscow"]
[Date "2018.08.10"]
[Round "2"]
[White "Tsotsonava, Elene"]
[Black "Sevdimaliyev, Urfan"]
[Result "1/2-1/2"]
[ECO "C07"]
[WhiteElo "1701"]
[BlackElo "2388"]
[Annotator "NA"]
[PlyCount "113"]
[EventDate "2018.08.10"]
[EventCountry "RUS"]
[SourceTitle "playchess.com"]
[Source "ChessBase"]
[SourceQuality "1"]
[TimeControl "5400+30"]

1. e4 {[%emt 0:00:00]} e6 {[%emt 0:00:26]} 2. d4 {[%emt 0:00:00]} d5 {[%emt 0:00:12]} 3. Nd2 {[%emt 0:00:00]} c5 {[%emt 0:00:37]} 4. exd5 {[%emt 0:00:00]} Qxd5 {[%emt 0:01:01]} 5. Ngf3 cxd4 {[%emt 0:02:36]} 6. Bc4 {[%emt 0:00:36]} Qd7 {[%emt 0:00:14]} 7. O-O {[%emt 0:09:51]} Nc6 {[%emt 0:00:19]} 8. Nb3 {[%emt 0:00:27]} Nf6 {[%emt 0:00:37]} 9. Nbxd4 {[%emt 0:00:48]} Nxd4 {[%emt 0:01:35]} 10. Nxd4 {[%emt 0:00:10]} a6 {[%emt 0:00:06]} 11. a4 {[%emt 0:02:13]} Qc7 {[%emt 0:04:25]} 12. Qe2 {[%emt 0:02:51]} Bd6 {[%emt 0:03:25]} 13. h3 {[%emt 0:00:30]} O-O {[%emt 0:02:09]} 14. Bg5 {[%emt 0:05:27]} Nd7 {[%emt 0:04:20]} 15. Rad1 {[%emt 0:02:31]} Ne5 {[%emt 0:01:31]} 16. Bb3 {[%emt 0:00:33]} Ng6 {[%emt 0:01:00]} 17. Rfe1 {[%emt 0:02:37]} h6 {[%emt 0:04:01]} 18. Be3 {[%emt 0:01:39]} b6 {[%emt 0:05:25]} 19. Qc4 {[%emt 0:03:27]} Bb7 {[%emt 0:14:05]} 20. Nxe6 {[%emt 0:15:01]} Bh2+ {[%emt 0:01:34]} 21. Kh1 {[%emt 0:00:10]} fxe6 {[%emt 0:00:37]} 22. Bxb6 {[%emt 0:03:32]} Qxc4 {[%emt 0:04:16]} 23. Bxc4 {[%emt 0:00:12]} Be5 {[%emt 0:08:59]} 24. Bd3 {[%emt 0:02:48]} Rf6 {[%emt 0:02:49]} 25. Bxg6 {[%emt 0:04:10]} Rxg6 {[%emt 0:01:00]} 26. Rxe5 {[%emt 0:00:15]} Rxg2 {[%emt 0:01:06]} 27. Rc5 {[%emt 0:04:47]} Rxf2+ {[%emt 0:03:08]} 28. Kg1 {[%emt 0:00:17]} Rg2+ {[%emt 0:02:39]} 29. Kf1 {[%emt 0:00:22]} Rf8+ {[%emt 0:00:22]} 30. Ke1 {[%emt 0:00:14]} Rf4 {[%emt 0:04:13]} 31. Rc7 {[%emt 0:01:40]} Bd5 {[%emt 0:02:06]} 32. Rd2 {[%emt 0:01:22]} Rg3 {[%emt 0:04:14]} 33. Bd4 {[%emt 0:01:10]} Re4+ {[%emt 0:03:16]} 34. Kd1 {[%emt 0:02:32]} Rf4 {[%emt 0:03:02]} 35. c4 {[%emt 0:05:01]} Bf3+ {[%emt 0:02:57]} 36. Kc1 {[%emt 0:00:43]} Be4 {[%emt 0:01:10]} 37. Be5 {[%emt 0:05:51]} Rf1+ {[%emt 0:02:32]} 38. Rd1 {[%emt 0:00:14]} Rxd1+ {[%emt 0:00:50]} 39. Kxd1 {[%emt 0:00:06]} Rxh3 {[%emt 0:01:57]} 40. Rxg7+ {[%emt 0:05:31]} Kf8 {[%emt 0:00:00]} 41. Ra7 {[%emt 0:00:26]} Rd3+ {[%emt 0:02:14]} 42. Ke2 {[%emt 0:00:31]} Rb3 {[%emt 0:01:32]} 43. Rxa6 {[%emt 0:00:40]} Bd3+ {[%emt 0:00:15]} 44. Kd2 {[%emt 0:01:31]} Bxc4 {[%emt 0:00:02]} 45. Ra7 {[%emt 0:00:11]} Bd5 {[%emt 0:00:57]} 46. Kc2 {[%emt 0:00:56]} h5 {[%emt 0:01:17]} 47. Bc3 {[%emt 0:02:04]} Ke8 {[%emt 0:02:10]} 48. Rh7 {[%emt 0:02:03]} Be4+ {[%emt 0:01:31]} 49. Kxb3 {[%emt 0:00:09]} Bxh7 {[%emt 0:00:17]} 50. Kc4 {[%emt 0:00:23]} Bc2 {[%emt 0:01:30]} 51. a5 {[%emt 0:00:51]} Kd7 {[%emt 0:00:20]} 52. b4 {[%emt 0:00:43]} Ba4 {[%emt 0:00:35]} 53. Kc5 {[%emt 0:01:14]} Kc7 {[%emt 0:00:27]} 54. a6 {[%emt 0:01:32]} Kb8 {[%emt 0:00:16]} 55. Kb6 {[%emt 0:00:36]} Ka8 {[%emt 0:00:23]} 56. b5 {[%emt 0:00:38]} Bxb5 {[%emt 0:00:02]} 57. Kxb5 1/2-1/2

[Event "Botvinnik Cup 2018"]
[Site "Moscow"]
[Date "2018.08.11"]
[Round "3"]
[White "Paichadze, Luka"]
[Black "Mailebayev, Sanzhar"]
[Result "1-0"]
[ECO "C26"]
[WhiteElo "2564"]
[BlackElo "1820"]
[Annotator "ChessBase"]
[PlyCount "77"]
[EventDate "2018.08.10"]
[EventCountry "RUS"]
[SourceTitle "playchess.com"]
[Source "ChessBase"]
[SourceQuality "1"]
[TimeControl "5400+30"]

1. e4 {[%emt 0:02:39]} e5 {[%emt 0:00:00]} 2. Nc3 {[%emt 0:00:10]} Nf6 {[%emt 0:00:23]} 3. g3 {[%emt 0:00:59]} Nc6 {[%emt 0:01:07]} 4. Bg2 {[%emt 0:01:02]} Bc5 {[%emt 0:01:34]} 5. Nf3 {[%emt 0:00:26]} d6 {[%emt 0:00:48]} 6. O-O {[%emt 0:00:20]} O-O {[%emt 0:00:32]} 7. d3 {[%emt 0:00:12]} a6 {[%emt 0:06:17]} 8. Be3 {[%emt 0:00:41]} Ba7 {[%emt 0:02:05]} 9. Bxa7 {[%emt 0:00:22]} Rxa7 {[%emt 0:01:06]} 10. h3 {[%emt 0:00:07]} d5 {[%emt 0:33:34]} 11. exd5 {[%emt 0:00:45]} Nxd5 {[%emt 0:00:05]} 12. Re1 {[%emt 0:00:42]} Nxc3 {[%emt 0:01:44]} 13. bxc3 {[%emt 0:00:07]} Re8 {[%emt 0:04:55]} 14. Nd2 {[%emt 0:10:28]} Be6 {[%emt 0:03:31]} 15. c4 {[%emt 0:00:22]} f6 {[%emt 0:00:32]} 16. Nb3 {[%emt 0:00:48]} Qd6 {[%emt 0:03:12]} 17. Qd2 {[%emt 0:02:00]} b6 {[%emt 0:06:09]} 18. Qc3 {[%emt 0:08:51]} Qd7 {[%emt 0:10:03]} 19. Kh2 {[%emt 0:07:30]} Ne7 {[%emt 0:03:50]} 20. d4 {[%emt 0:02:03]} exd4 {[%emt 0:02:39]} 21. Nxd4 {[%emt 0:00:11]} Bf7 {[%emt 0:00:13]} 22. Rad1 {[%emt 0:05:24]} c5 {[%emt 0:05:40]} 23. Nc6 {[%emt 0:01:33]} Qc7 {[%emt 0:00:09]} 24. Nxa7 {[%emt 0:02:12]} Qxa7 {[%emt 0:00:05]} 25. Rd6 {[%emt 0:00:36]} b5 {[%emt 0:02:18]} 26. Qa5 {[%emt 0:03:21]} Bxc4 {[%emt 0:03:14]} 27. Rxa6 {[%emt 0:01:20]} Qd7 {[%emt 0:00:19]} 28. Ra7 {[%emt 0:02:53]} Qd6 {[%emt 0:00:16]} 29. Qc7 {[%emt 0:01:03]} Qxc7 {[%emt 0:03:15]} 30. Rxc7 {[%emt 0:00:22]} Kf8 {[%emt 0:00:04]} 31. a3 {[%emt 0:00:01]} Nf5 {[%emt 0:00:33]} 32. Rxe8+ {[%emt 0:00:16]} Kxe8 {[%emt 0:00:04]} 33. Rxc5 {[%emt 0:00:46]} Nd4 {[%emt 0:00:06]} 34. a4 {[%emt 0:01:53]} Be2 {[%emt 0:00:33]} 35. axb5 {[%emt 0:00:10]} Nxb5 {[%emt 0:00:07]} 36. Bc6+ {[%emt 0:00:03]} Kf8 {[%emt 0:00:16]} 37. Bxb5 {[%emt 0:00:38]} Bxb5 {[%emt 0:00:06]} 38. Rxb5 {[%emt 0:00:02]} Kg8 {[%emt 0:00:25]} 39. Rb7 {[%emt 0:00:06]} 1-0

[Event "Botvinnik Cup 2018"]
[Site "Moscow"]
[Date "2018.08.11"]
[Round "3"]
[White "Vaganian, Rafael A"]
[Black "Babazada, Khazar"]
[Result "1/2-1/2"]
[ECO "A45"]
[WhiteElo "2546"]
[BlackElo "2229"]
[Annotator "ChessBase"]
[PlyCount "68"]
[EventDate "2018.08.10"]
[EventCountry "RUS"]
[SourceTitle "playchess.com"]
[Source "ChessBase"]
[SourceQuality "1"]
[TimeControl "5400+30"]

1. d4 {[%emt 0:00:00]} Nf6 {[%emt 0:06:03]} 2. Bg5 {[%emt 0:00:23]} d5 {[%emt 0:01:56]} 3. e3 {[%emt 0:00:15]} Nbd7 {[%emt 0:00:56]} 4. Nf3 {[%emt 0:04:03]} e6 {[%emt 0:00:08]} 5. Bd3 Be7 {[%emt 0:00:02]} 6. Nbd2 {[%emt 0:02:48]} O-O {[%emt 0:01:51]} 7. O-O {[%emt 0:01:34]} b6 {[%emt 0:01:42]} 8. a4 {[%emt 0:04:07]} c5 {[%emt 0:01:18]} 9. c3 {[%emt 0:07:11]} Bb7 {[%emt 0:03:04]} 10. Ne5 {[%emt 0:03:49]} Nxe5 {[%emt 0:01:43]} 11. dxe5 Ne4 {[%emt 0:03:01]} 12. Bxe7 {[%emt 0:06:00]} Qxe7 {[%emt 0:00:00]} 13. f4 {[%emt 0:02:42]} Nxd2 {[%emt 0:03:57]} 14. Qxd2 {[%emt 0:00:05]} f5 {[%emt 0:00:25]} 15. a5 {[%emt 0:01:20]} Rfd8 {[%emt 0:00:45]} 16. Be2 {[%emt 0:00:43]} Bc6 {[%emt 0:02:23]} 17. Bf3 {[%emt 0:09:48]} g5 {[%emt 0:01:43]} 18. h3 {[%emt 0:00:57]} Kh8 {[%emt 0:01:04]} 19. c4 {[%emt 0:04:24]} dxc4 {[%emt 0:02:23]} 20. Qe2 {[%emt 0:06:32]} Bxf3 {[%emt 0:02:12]} 21. Qxf3 {[%emt 0:00:33]} b5 {[%emt 0:01:13]} 22. Rad1 {[%emt 0:00:51]} gxf4 {[%emt 0:00:47]} 23. Qxf4 {[%emt 0:00:43]} Rd3 {[%emt 0:01:22]} 24. e4 {[%emt 0:02:16]} Rad8 {[%emt 0:00:45]} 25. Rxd3 {[%emt 0:00:59]} cxd3 {[%emt 0:00:16]} 26. exf5 {[%emt 0:00:01]} exf5 {[%emt 0:00:05]} 27. Qxf5 {[%emt 0:00:01]} d2 {[%emt 0:00:26]} 28. Rd1 {[%emt 0:00:06]} c4 {[%emt 0:04:28]} 29. e6 {[%emt 0:00:00]} Qg7 {[%emt 0:03:10]} 30. Qf4 {[%emt 0:00:23]} Qd4+ {[%emt 0:04:29]} 31. Qxd4+ {[%emt 0:00:05]} Rxd4 {[%emt 0:00:01]} 32. e7 {[%emt 0:00:36]} Re4 {[%emt 0:00:01]} 33. Rxd2 {[%emt 0:00:02]} Rxe7 {[%emt 0:00:07]} 34. a6 {[%emt 0:00:48]} Re1+ {[%emt 0:06:05]} 1/2-1/2

[Event "Botvinnik Cup 2018"]
[Site "Moscow"]
[Date "2018.08.11"]
[Round "3"]
[White "Sevdimaliyev, Urfan"]
[Black "Grigoryan, Aram"]
[Result "1/2-1/2"]
[ECO "C00"]
[WhiteElo "2388"]
[BlackElo "1805"]
[Annotator "NA"]
[PlyCount "45"]
[EventDate "2018.08.10"]
[EventCountry "RUS"]
[SourceTitle "playchess.com"]
[Source "ChessBase"]
[SourceQuality "1"]
[TimeControl "5400+30"]

1. e4 {[%emt 0:00:10]} e6 {[%emt 0:00:00]} 2. d4 {[%emt 0:00:26]} d5 {[%emt 0:00:00]} 3. Bd3 {[%emt 0:00:07]} dxe4 {[%emt 0:00:37]} 4. Bxe4 {[%emt 0:00:01]} Nf6 {[%emt 0:00:18]} 5. Bf3 {[%emt 0:00:13]} Be7 {[%emt 0:00:50]} 6. Ne2 {[%emt 0:00:12]} O-O {[%emt 0:00:35]} 7. O-O {[%emt 0:00:19]} c5 {[%emt 0:00:46]} 8. c4 {[%emt 0:01:17]} Nc6 {[%emt 0:02:03]} 9. Be3 {[%emt 0:02:06]} cxd4 {[%emt 0:03:14]} 10. Nxd4 {[%emt 0:00:13]} Nxd4 {[%emt 0:01:01]} 11. Qxd4 {[%emt 0:01:59]} Qa5 {[%emt 0:04:06]} 12. Qc3 {[%emt 0:03:37]} Qc7 {[%emt 0:03:36]} 13. Qb3 {[%emt 0:02:25]} Bc5 {[%emt 0:13:10]} 14. Bxc5 {[%emt 0:01:10]} Qxc5 {[%emt 0:00:07]} 15. Nc3 {[%emt 0:01:05]} Bd7 {[%emt 0:02:46]} 16. Ne4 {[%emt 0:10:25]} Nxe4 {[%emt 0:02:20]} 17. Bxe4 {[%emt 0:00:02]} Bc6 {[%emt 0:01:58]} 18. Bxc6 {[%emt 0:01:17]} bxc6 {[%emt 0:01:06]} 19. Qc3 {[%emt 0:01:11]} Rab8 {[%emt 0:01:52]} 20. Rab1 {[%emt 0:04:39]} a5 {[%emt 0:04:29]} 21. b3 {[%emt 0:01:23]} Qa3 {[%emt 0:01:28]} 22. Qb2 {[%emt 0:02:46]} Qc5 {[%emt 0:02:52]} 23. Qc3 {[%emt 0:02:51]} 1/2-1/2

[Event "Botvinnik Cup 2018"]
[Site "Moscow"]
[Date "2018.08.11"]
[Round "3"]
[White "Sevdimaliyev, Urfan"]
[Black "Melkonyan, Arshak"]
[Result "1-0"]
[ECO "D02"]
[WhiteElo "2388"]
[BlackElo "2051"]
[Annotator "NA"]
[PlyCount "111"]
[EventDate "2018.08.10"]
[EventCountry "RUS"]
[SourceTitle "playchess.com"]
[Source "ChessBase"]
[SourceQuality "1"]
[TimeControl "5400+30"]

1. d4 {[%emt 0:00:00]} d5 {[%emt 0:00:00]} 2. Nf3 {[%emt 0:00:38]} c6 {[%emt 0:00:27]} 3. Bf4 {[%emt 0:00:12]} Bf5 {[%emt 0:00:19]} 4. e3 {[%emt 0:00:10]} e6 {[%emt 0:01:09]} 5. c4 {[%emt 0:00:23]} Nd7 {[%emt 0:00:36]} 6. Nc3 {[%emt 0:00:03]} Ngf6 {[%emt 0:01:40]} 7. Qb3 {[%emt 0:00:56]} Qb6 {[%emt 0:00:46]} 8. c5 {[%emt 0:00:29]} Qxb3 {[%emt 0:01:12]} 9. axb3 {[%emt 0:01:04]} a6 {[%emt 0:00:28]} 10. h3 {[%emt 0:00:37]} h6 {[%emt 0:06:32]} 11. b4 {[%emt 0:00:29]} Rc8 {[%emt 0:02:14]} 12. Nd2 {[%emt 0:00:28]} Be7 {[%emt 0:05:01]} 13. Nb3 {[%emt 0:00:25]} Bd8 {[%emt 0:03:13]} 14. Na5 {[%emt 0:03:59]} Bxa5 {[%emt 0:00:23]} 15. bxa5 {[%emt 0:01:51]} O-O {[%emt 0:09:32]} 16. Bd6 {[%emt 0:08:39]} Rfe8 {[%emt 0:01:36]} 17. f4 {[%emt 0:04:11]} Ne4 {[%emt 0:01:29]} 18. Nxe4 {[%emt 0:02:05]} Bxe4 {[%emt 0:00:01]} 19. Ra3 {[%emt 0:00:57]} Ra8 {[%emt 0:00:49]} 20. Rb3 {[%emt 0:02:48]} Ra7 {[%emt 0:00:06]} 21. Rg1 {[%emt 0:01:26]} Nf6 {[%emt 0:25:07]} 22. Be5 {[%emt 0:07:31]} Rd8 {[%emt 0:01:39]} 23. Bxf6 {[%emt 0:01:11]} gxf6 {[%emt 0:00:01]} 24. g4 {[%emt 0:00:44]} Kh7 {[%emt 0:00:52]} 25. Be2 {[%emt 0:01:51]} Rd7 {[%emt 0:03:45]} 26. Kd2 {[%emt 0:05:07]} Ra8 {[%emt 0:01:24]} 27. h4 {[%emt 0:09:25]} Rg8 {[%emt 0:02:36]} 28. Rb6 {[%emt 0:06:35]} e5 {[%emt 0:07:26]} 29. Rb3 {[%emt 0:03:53]} exd4 {[%emt 0:02:56]} 30. exd4 {[%emt 0:00:06]} Re7 {[%emt 0:00:13]} 31. Rgg3 {[%emt 0:02:08]} f5 {[%emt 0:04:10]} 32. g5 {[%emt 0:04:43]} Rg6 {[%emt 0:02:12]} 33. Rb6 {[%emt 0:02:21]} hxg5 {[%emt 0:02:31]} 34. hxg5 {[%emt 0:00:57]} Rge6 {[%emt 0:00:40]} 35. Rgb3 {[%emt 0:02:34]} Bc2 {[%emt 0:03:03]} 36. Kxc2 {[%emt 0:00:21]} Rxe2+ {[%emt 0:00:02]} 37. Kb1 {[%emt 0:00:02]} Re1+ {[%emt 0:02:00]} 38. Ka2 {[%emt 0:00:19]} R1e4 {[%emt 0:00:07]} 39. Rxb7 {[%emt 0:00:47]} Rxb7 {[%emt 0:00:02]} 40. Rxb7 {[%emt 0:00:01]} Rxd4 {[%emt 0:00:48]} 41. Rxf7+ {[%emt 0:02:49]} Kg8 {[%emt 0:00:08]} 42. Rxf5 {[%emt 0:01:06]} Ra4+ {[%emt 0:00:06]} 43. Kb3 {[%emt 0:06:18]} Rxa5 {[%emt 0:00:04]} 44. Kb4 {[%emt 0:00:30]} Rb5+ {[%emt 0:00:04]} 45. Kc3 {[%emt 0:00:01]} Rxc5+ {[%emt 0:00:01]} 46. Kd4 {[%emt 0:00:05]} Rb5 {[%emt 0:00:01]} 47. Rf6 {[%emt 0:00:14]} Rb4+ {[%emt 0:02:17]} 48. Ke5 {[%emt 0:00:37]} Re4+ {[%emt 0:04:23]} 49. Kf5 {[%emt 0:00:37]} Rc4 {[%emt 0:02:59]} 50. Kg6 {[%emt 0:02:46]} d4 {[%emt 0:01:20]} 51. f5 {[%emt 0:00:30]} Rc5 {[%emt 0:03:06]} 52. Rd6 {[%emt 0:01:08]} Rd5 {[%emt 0:00:16]} 53. Rxd5 {[%emt 0:00:34]} cxd5 {[%emt 0:00:04]} 54. f6 {[%emt 0:00:01]} d3 {[%emt 0:00:13]} 55. f7+ {[%emt 0:00:01]} Kf8 {[%emt 0:00:04]} 56. Kf6 {[%emt 0:00:01] Ke8} 1-0

[Event "Botvinnik Cup 2018"]
[Site "Moscow"]
[Date "2018.08.11"]
[Round "3"]
[White "Komliakov, Viktor"]
[Black "Omonova, Umida"]
[Result "1/2-1/2"]
[ECO "B27"]
[WhiteElo "2366"]
[BlackElo "1762"]
[Annotator "NA"]
[PlyCount "50"]
[EventDate "2018.08.10"]
[EventCountry "RUS"]
[SourceTitle "playchess.com"]
[Source "ChessBase"]
[SourceQuality "1"]
[TimeControl "5400+30"]

1. e4 {[%emt 0:00:00]} c5 {[%emt 0:00:00]} 2. Nf3 {[%emt 0:00:00]} g6 {[%emt 0:00:44]} 3. d4 {[%emt 0:01:54]} cxd4 {[%emt 0:01:34]} 4. Qxd4 {[%emt 0:00:03]} Nf6 {[%emt 0:00:51]} 5. Bb5 {[%emt 0:00:00]} Nc6 {[%emt 0:03:18]} 6. Bxc6 dxc6 {[%emt 0:00:42]} 7. Qxd8+ {[%emt 0:01:10]} Kxd8 {[%emt 0:00:10]} 8. Nc3 {[%emt 0:00:24]} Bg7 {[%emt 0:00:22]} 9. h3 b5 10. a3 {[%emt 0:13:44]} Bb7 {[%emt 0:07:15]} 11. Bf4 {[%emt 0:08:05]} Nd7 {[%emt 0:01:28]} 12. O-O-O {[%emt 0:02:24]} Bxc3 {[%emt 0:01:12]} 13. bxc3 {[%emt 0:02:34]} Ke8 14. Be3 {[%emt 0:11:19]} c5 {[%emt 0:04:03]} 15. Nd2 {[%emt 0:03:24]} Rc8 {[%emt 0:01:31]} 16. f3 {[%emt 0:04:01]} c4 {[%emt 0:03:25]} 17. h4 {[%emt 0:03:21]} h5 {[%emt 0:07:52]} 18. Nf1 Bc6 19. Ng3 {[%emt 0:04:35]} f6 {[%emt 0:05:09]} 20. Rd2 {[%emt 0:00:55]} a6 21. Ne2 {[%emt 0:01:35]} Kf7 {[%emt 0:02:48]} 22. Rhd1 {[%emt 0:02:07]} Nf8 {[%emt 0:08:12]} 23. Nf4 Ne6 24. Nxe6 {[%emt 0:18:46]} Kxe6 {[%emt 0:00:33]} 25. Bf4 {[%emt 0:03:10]} Rhg8 1/2-1/2

[Event "Botvinnik Cup 2018"]
[Site "Moscow"]
[Date "2018.08.11"]
[Round "3"]
[White "Komliakov, Viktor"]
[Black "Sunnatov, Mirfayz"]
[Result "1-0"]
[ECO "B40"]
[WhiteElo "2366"]
[BlackElo "1868"]
[Annotator "NA"]
[PlyCount "91"]
[EventDate "2018.08.10"]
[EventCountry "RUS"]
[SourceTitle "playchess.com"]
[Source "ChessBase"]
[SourceQuality "1"]
[TimeControl "5400+30"]

1. e4 {[%emt 0:00:00]} c5 {[%emt 0:00:00]} 2. Nf3 {[%emt 0:00:00]} e6 {[%emt 0:00:00]} 3. d3 {[%emt 0:00:33]} Nc6 {[%emt 0:00:01]} 4. g3 {[%emt 0:00:11]} g6 {[%emt 0:01:09]} 5. Bg2 {[%emt 0:00:18]} Bg7 {[%emt 0:00:02]} 6. O-O {[%emt 0:00:13]} d6 {[%emt 0:00:36]} 7. c3 {[%emt 0:01:10]} e5 {[%emt 0:01:40]} 8. a3 {[%emt 0:02:05]} a5 {[%emt 0:03:46]} 9. Be3 {[%emt 0:04:38]} Qb6 {[%emt 0:01:35]} 10. Nbd2 {[%emt 0:01:49]} Nf6 {[%emt 0:04:47]} 11. h3 {[%emt 0:05:17]} a4 {[%emt 0:05:11]} 12. d4 {[%emt 0:16:39]} Qb5 {[%emt 0:08:16]} 13. Re1 {[%emt 0:04:45]} O-O {[%emt 0:05:28]} 14. Rb1 {[%emt 0:26:42]} Rd8 {[%emt 0:03:27]} 15. Bf1 {[%emt 0:01:57]} Qa5 {[%emt 0:00:45]} 16. d5 {[%emt 0:03:03]} Ne7 {[%emt 0:01:10]} 17. c4 {[%emt 0:00:39]} h6 {[%emt 0:02:16]} 18. Nh2 {[%emt 0:03:41]} Nd7 {[%emt 0:04:59]} 19. h4 {[%emt 0:01:34]} f5 {[%emt 0:01:01]} 20. h5 {[%emt 0:01:16]} g5 {[%emt 0:01:07]} 21. exf5 {[%emt 0:01:00]} Nxf5 {[%emt 0:00:10]} 22. Ng4 {[%emt 0:01:29]} Nxe3 {[%emt 0:02:21]} 23. Nxe3 {[%emt 0:01:03]} Nf6 {[%emt 0:01:07]} 24. Bd3 {[%emt 0:01:10]} Rf8 {[%emt 0:07:22]} 25. Ne4 {[%emt 0:00:29]} Nxe4 {[%emt 0:01:03]} 26. Bxe4 {[%emt 0:00:06]} Bd7 {[%emt 0:00:09]} 27. Qc2 {[%emt 0:02:42]} Rf6 {[%emt 0:02:07]} 28. Bf5 {[%emt 0:01:03]} Bxf5 {[%emt 0:01:12]} 29. Nxf5 {[%emt 0:00:04]} Raf8 {[%emt 0:00:15]} 30. g4 {[%emt 0:00:38]} b5 {[%emt 0:00:42]} 31. cxb5 {[%emt 0:00:33]} Qxb5 {[%emt 0:00:01]} 32. Re4 {[%emt 0:00:55]} Qb7 {[%emt 0:02:07]} 33. Rxa4 {[%emt 0:00:33]} Rxf5 {[%emt 0:01:32]} 34. gxf5 {[%emt 0:00:05]} Qxd5 {[%emt 0:00:11]} 35. Qc4 {[%emt 0:00:07]} Qxc4 {[%emt 0:00:06]} 36. Rxc4 {[%emt 0:00:02]} Rxf5 {[%emt 0:00:08]} 37. b4 {[%emt 0:00:01]} cxb4 {[%emt 0:00:12]} 38. axb4 {[%emt 0:00:47]} d5 {[%emt 0:00:04]} 39. Rc8+ {[%emt 0:00:05]} Kh7 {[%emt 0:00:45]} 40. b5 {[%emt 0:00:06]} e4 {[%emt 0:00:50]} 41. b6 {[%emt 0:00:08]} Bd4 {[%emt 0:00:02]} 42. b7 {[%emt 0:00:28]} Rxf2 {[%emt 0:01:59]} 43. Kh1 {[%emt 0:01:33]} Be5 {[%emt 0:01:03]} 44. b8=Q {[%emt 0:00:47]} Rh2+ {[%emt 0:00:01]} 45. Kg1 {[%emt 0:00:07]} Bxb8 {[%emt 0:00:06]} 46. Rb7+ 1-0